Cogmind - Beta 15 @@@ ROGUE MODE // 2025.05.11 @ 23:30:28 Player: Darcyisverycute Result: Destroyed by D-53 Grenadier with Mini Grenade Launcher Performance ------------- Evolutions (0) 0 Regions Visited (2) 400 Robots Destroyed (103) 515 Value Destroyed (1176) 1176 Prototype IDs (3) 60 Alien Tech Used (0) 0 Bonus (19) 19 TOTAL SCORE: 2170 Bonus ------- High Alert Combat Kills 19 Cogmind --------- Core Integrity 0/250 Matter 225/300 Energy 100/100 System Corruption 13% Temperature Cool (0) Movement Treading (240) Ox1 Location -10/Mines Parts ------- > --- POWER (1) -------- (None) > --- PROPULSION (2) --- Improved Treads Improved Treads > --- UTILITY (2) ------ Huge Storage Unit > --- WEAPON (2) ------- Grenade Launcher > --- INVENTORY (25) --- Light Ion Engine Improved Treads Improved Treads Improved Heat Sink Medium Storage Unit Large Storage Unit High-capacity Storage Unit Large Battery (200) Medium Matter Pod (100) Improved Terrain Scanner Hacking Suite Hacking Suite Improved Trap Extractor (0/6) EM Pulse Cannon Particle Cannon Heavy Assault Rifle Improved Light Cannon Improved Light Cannon Improved Light Cannon Grenade Launcher Grenade Launcher Grenade Launcher Grenade Launcher Peak State ------------ > --- POWER ------------ Light Ion Engine > --- PROPULSION ------- Light Treads Improved Treads > --- UTILITY ---------- Huge Storage Unit Improved Trap Extractor > --- WEAPON ----------- Improved Light Cannon Improved Light Cannon > --- INVENTORY -------- Light Ion Engine Improved Treads Improved Treads Improved Treads Medium Storage Unit Large Storage Unit High-capacity Storage Unit Large Battery Medium Matter Pod Improved Terrain Scanner Hacking Suite Hacking Suite Particle Cannon Heavy Assault Rifle Improved Light Cannon Improved Light Cannon Grenade Launcher Grenade Launcher Grenade Launcher Grenade Launcher Grenade Launcher [Rating: 16] Favorites ----------- Power Light Ion Engine Engine Light Ion Engine Propulsion Light Treads Treads Light Treads Utility Seismic Detector Device Seismic Detector Storage High-capacity Storage Unit Weapon Improved Light Cannon Ballistic Gun Light Assault Rifle Ballistic Cannon Improved Light Cannon Launcher Grenade Launcher Slashing Weapon Katana Build | -11 -10 -10 ------- Run | Yrd Mat Min Slots Evolved . | . . . Power . | . . . Propulsion . | . . . Utility . | . . . Weapon . | . . . Parts Attached 20 | 6 9 5 Power 2 | 1 1 . Engine 2 | 1 1 . Core . | . . . Reactor . | . . . Propulsion 4 | 2 1 1 Treads 4 | 2 1 1 Leg . | . . . Wheel . | . . . Hover . | . . . Flight . | . . . Utility 6 | 1 3 2 Device 3 | 1 1 1 Storage 3 | . 2 1 Processor . | . . . Hackware . | . . . Protection . | . . . Artifact . | . . . Weapon 8 | 2 4 2 Energy Gun . | . . . Energy Cannon . | . . . Ballistic Gun 2 | 2 . . Ballistic Cannon 2 | . 2 . Launcher 3 | . 2 1 Special Weapon . | . . . Impact Weapon . | . . . Slashing Weapon 1 | . . 1 Piercing Weapon . | . . . Special Melee Weapon . | . . . Unidentified Prototypes . | . . . Parts Lost 5 | . . 5 Power 1 | . . 1 Propulsion 1 | . . 1 Utility 1 | . . 1 Weapon 2 | . . 2 Highest Loss Streak 4 | . . 4 To Critical Strikes . | . . . Average Backups 19 | 3 18 22 Power . | . 1 1 Propulsion 2 | 1 2 2 Utility 6 | . 6 8 Weapon 8 | . 8 10 Tool/Special . | . . . Unused Backups 26 | . 9 17 Power 1 | . . 1 Propulsion 4 | . 2 2 Utility 8 | . 1 7 Weapon 13 | . 6 7 Tool/Special . | . . . Average Slot Usage (%) 99 | . 99 93 Engine 13 | . 14 12 Treads 27 | . 28 27 Device 14 | . 14 12 Storage 13 | . 13 14 Ballistic Cannon 24 | . 24 24 Launcher 2 | . 3 . Peak Build Rating 16 | 8 13 16 Average Rating 12 | 4 12 13 On Entrance 7 | . 8 13 Naked Turns . | . . . Heaviest Build 94 | 7 52 94 Greatest Support 46 | 40 43 46 Greatest Overweight (x) 3 | . 1 3 Average Overweight (x) . | . . 1 Largest Inventory Capacity 25 | 5 20 25 Average Capacity 19 | 5 19 23 Most Carried 25 | 5 20 25 Average Carried 19 | 3 18 22 Final Capacity 25 | 5 20 25 Final Carried 23 | 5 20 23 Class Distribution -------------------- 100% | Mutant Dominant Class ---------------- Mutant | -10/Materials Mutant | -10/Mines Resources | -11 -10 -10 ----------- Run | Yrd Mat Min Matter Collected 5567 | 210 5286 71 Remotely . | . . . Salvage Created 6110 | 35 6033 42 Parts 483 | 6 466 11 Haulers Intercepted 2 | . 2 . Recyclers Shooed 23 | . 23 . Parts Field Recycled . | . . . Retrieved Matter . | . . . Parts Self-Destructed . | . . . Prevented . | . . . Kills | -11 -10 -10 ------- Run | Yrd Mat Min Combat Hostiles Destroyed 27 | . 27 . Cannons 26 | . 26 . AOE 1 | . 1 . Classes Destroyed 9 | 1 8 . Worker 137 | . 137 . Builder 78 | . 76 2 Tunneler 7 | 2 2 3 Hauler 2 | . 2 . Recycler 46 | . 46 . Operator 2 | . 2 . Watcher 3 | . 3 . Swarmer 12 | . 12 . Grunt 15 | . 15 . Best Kill Streak 9 | 2 9 1 Combat Bots Only 8 | . 8 . Max Kills in Single Turn 2 | 1 2 1 Gunslinging . | . . . Exploded 1 | . 1 . Melee . | . . . Uniques/NPCs Destroyed . | . . . Combat | -11 -10 -10 -------- Run | Yrd Mat Min Hostile Shots Fired 81 | . 77 4 Missed 18 | . 17 1 Hits 63 | . 60 3 Projectile 63 | . 60 3 AOE 5 | . . 5 Damage Taken 1173 | . 585 588 Core 261 | . 151 110 Absorbed by Shields . | . . . Core Remaining (%) 100 | 100 . . Volleys Fired 767 | 5 751 11 Largest 2 | 2 2 2 Hottest 66 | 40 66 66 Shots Fired 1175 | 10 1145 20 Gun 10 | 10 . . Cannon 1092 | . 1074 18 Launcher 73 | . 71 2 Special . | . . . Kinetic 1102 | 10 1074 18 Thermal . | . . . Explosive 73 | . 71 2 Electromagnetic . | . . . Robot Hit Streak 12 | 5 12 4 Robot Miss Streak 7 | 1 7 2 Penetration Max . | . . . Secondary Targets . | . . . Shots Hit Robots 575 | 9 555 11 Core Hits 304 | 4 295 5 Critical Kills . | . . . Critical Parts Destroyed . | . . . Critical Strikes 29 | . 29 . Blast 29 | . 29 . Melee Attacks 2 | . . 2 Impact . | . . . Slashing 2 | . . 2 Piercing . | . . . Sneak Attacks . | . . . Combat Hostiles . | . . . Follow-up Attacks . | . . . Damage Inflicted 12641 | 93 12253 295 Guns 93 | 93 . . Cannons 11939 | . 11723 216 Explosions 609 | . 530 79 Melee . | . . . Ramming . | . . . Kinetic 12032 | 93 11723 216 Thermal . | . . . Explosive 546 | . 467 79 Electromagnetic 63 | . 63 . Impact . | . . . Slashing . | . . . Piercing . | . . . Highest Corruption 13 | . . 13 Average Corruption 13 | . . 13 Corruption Purged . | . . . Corruption Blocked . | . . . Effects 5 | . . 5 Message Errors 1 | . . 1 Matter Fused 3 | . . 3 Data Loss (major) 1 | . . 1 Overload Shots . | . . . Overflow Damage 272 | . 256 16 Projectiles 268 | . 252 16 Explosions 4 | . 4 . Melee . | . . . Knockbacks 83 | . 82 1 Impact . | . . . Kinetic 81 | . 80 1 Secondary 2 | . 2 . Self-Inflicted Damage 42 | . 29 13 Shots 3 | . 2 1 Rammed . | . . . Targets Rammed . | . . . Kicked . | . . . Crushed . | . . . Highest Temperature 126 | . 126 12 Average Temperature 14 | . 14 5 Received Heat Transfer 165 | . 165 . Siege Activations . | . . . Martial Activations . | . . . Shielding Activations . | . . . Robots Disrupted . | . . . Combat Hostiles . | . . . Robots Corrupted . | . . . Combat Hostiles . | . . . Parts Fried 1 | . 1 . Impact Corruptions . | . . . Robots Melted . | . . . Combat Hostiles . | . . . Parts Melted . | . . . Heat Transferred . | . . . Parts Sabotaged . | . . . Parts Stolen . | . . . Parts Stripped . | . . . Power Chain Reactions . | . . . Alert | -11 -10 -10 ------- Run | Yrd Mat Min Maximum Alert Level 5 | . 5 3 Low Security (%) 15 | 100 15 . Level 1 14 | . 14 23 Level 2 17 | . 12 64 Level 3 14 | . 15 12 Level 4 16 | . 19 . Level 5 20 | . 23 . High Security . | . . . Max Security . | . . . Peak Influence 1966 | 5 1966 766 Initial 766 | . . 766 Average 900 | . 956 518 Influence Increases 2726 | 10 2671 45 Destroy 0b10 Robot/C 540 | . 540 . Destroy 0b10 Robot/NC 1375 | 10 1340 25 Destroy Leader 120 | . 120 . Successful Hack 69 | . 69 . Disable Machine 225 | . 225 . Destroy Structure 352 | . 332 20 Partial Spotted 15 | . 15 . Lose Combat Pursuer 30 | . 30 . Influence Decreases 2417 | 10 705 1702 Entered New Map 1200 | . . 1200 Time Decay 1167 | 10 705 452 Lost Part 50 | . . 50 Squads Dispatched 6 | . 6 . Investigation 5 | . 5 . Extermination . | . . . Reinforcement 1 | . 1 . Assault . | . . . Garrison . | . . . Intercept . | . . . Searches Triggered . | . . . Construction Impeded . | . . . Haulers Reinforced . | . . . Active Scanning Responses . | . . . Cargo Convoy Interrupts . | . . . Stealth | -11 -10 -10 --------- Run | Yrd Mat Min Distress Signals 2 | . 2 . Communications Jammed . | . . . Distress Signals . | . . . Times Spotted 34 | . 32 2 Peak Tracking Total 7 | . 7 1 Tactical Retreats 2 | . 2 . Traps | -11 -10 -10 ------- Run | Yrd Mat Min Traps Triggered 3 | . 2 1 Indirectly . | . . . Trap Hack Attempts . | . . . Triggered . | . . . Disarmed . | . . . Reprogrammed . | . . . Reused . | . . . Traps Extracted . | . . . Installed 4 | . . 4 Triggered . | . . . Machines | -11 -10 -10 ---------- Run | Yrd Mat Min Machines Disabled 16 | . 16 . Max in Single Turn 2 | . 2 . Machines Repaired . | . . . Machines Dismantled . | . . . Machines Sabotaged . | . . . Overloaded Fab Kills . | . . . Hacking | -11 -10 -10 --------- Run | Yrd Mat Min Machines Accessed 10 | . 9 1 Terminals 7 | . 7 . Fabricators . | . . . Repair Stations 1 | . 1 . Recycling Units 1 | . 1 . Scanalyzers . | . . . Garrison Access . | . . . Total Hacks 31 | . 30 1 Successful 16 | . 15 1 Failed 14 | . 14 . Catastrophic 4 | . 4 . Database Lockouts 1 | . 1 . Manual 14 | . 14 . Terminals 25 | . 25 . Fabricators . | . . . Repair Stations 2 | . 2 . Recycling Units 3 | . 3 . Scanalyzers . | . . . Garrison Access . | . . . Terminal Hacks 13 | . 12 1 Record 1 | . 1 . Part Schematic 5 | . 5 . Robot Analysis 1 | . 1 . Prototype ID Bank 2 | . 2 . Open Door 1 | . . 1 Emergency Access Points 1 | . 1 . Investigation Status 1 | . 1 . Recall Investigation 1 | . 1 . Fabricator Hacks . | . . . Repair Station Hacks 2 | . 2 . Scan Component 2 | . 2 . Recycling Unit Hacks 1 | . 1 . Retrieve Components 1 | . 1 . Scanalyzer . | . . . Garrison Access Hacks . | . . . Unauthorized Hacks . | . . . Terminals . | . . . Fabricators . | . . . Repair Stations . | . . . Recycling Units . | . . . Scanalyzers . | . . . Garrison Access . | . . . Data Cores Recovered 1 | . 1 . Used . | . . . Hacking Detections 9 | . 9 . Full Trace Events 9 | . 9 . Feedback Events . | . . . Feedback Blocked . | . . . Robot Schematics Acquired . | . . . Robots Built . | . . . Authchips . | . . . Time . | . . . Total Robot Build Rating . | . . . Part Schematics Acquired 5 | . 5 . Parts Built . | . . . Authchips . | . . . Time . | . . . Total Part Build Rating . | . . . Parts Repaired . | . . . Time . | . . . Parts Recycled . | . . . Recycled Matter . | . . . Retrieved Matter . | . . . Retrieved Components 9 | . 9 . Parts Scanalyzed . | . . . Part Schematics Acquired . | . . . Parts Damaged . | . . . Bothacking | -11 -10 -10 ------------ Run | Yrd Mat Min Used RIF Installer . | . . . Robots Hacked . | . . . Non-combat . | . . . Combat . | . . . Robot Hacks Applied . | . . . Relay Couplers Released . | . . . Fabnet Peak Effective % . | . . . Robots Rewired . | . . . Allies Hacked . | . . . Hacks Repelled . | . . . Allies | -11 -10 -10 -------- Run | Yrd Mat Min Total Allies . | . . . Largest Group . | . . . Highest-Rated Group . | . . . Highest-Rated Ally . | . . . Total Orders . | . . . Ally Attacks . | . . . Total Damage . | . . . Kills . | . . . Allies Corrupted . | . . . Allies Melted . | . . . Intel | -11 -10 -10 ------- Run | Yrd Mat Min Active Infowar (turns) 10915 | 35 9891 989 Terrain 319 | 35 284 . Seismic 10876 | . 9887 989 Robot Analysis Total 1 | . 1 . Derelict Logs Recovered 1 | . . 1 Drone Launches . | . . . Drone Recoveries . | . . . Exploration | -11 -10 -10 ------------- Run | Yrd Mat Min Turns Passed 11147 | 135 9891 1121 Spaces Moved 3664 | 72 3224 368 Core 9 | 9 . . Treads 3655 | 63 3224 368 Legs . | . . . Wheels . | . . . Hover . | . . . Flight . | . . . Fastest Speed 50 | 50 160 240 Average Speed 233 | 146 233 248 Slowest Speed 400 | 160 240 400 Overloaded Moves . | . . . Propulsion Burnouts . | . . . Robots Hopped . | . . . Potential Cave-ins . | . . . Cave-ins Triggered 3 | . . 3 Exploration Rate (%) 50 | 5 96 50 Regions Visited 2 Branch Regions 1 Pre-discovered Areas . | . . . Known Exits Taken . | . . . Unknown Exits Taken 2 | 1 1 . Scrap Searched 1 | . . 1 Spaces Dug 44 | . 42 2 Terrain Destroyed 565 | . 542 23 Melee 2 | . . 2 Projectile 62 | . 62 . AOE 501 | . 480 21 Terrain Rammed . | . . . Walls Destroyed . | . . . Machines Disabled . | . . . Actions | -11 -10 -10 --------- Run | Yrd Mat Min Total 5071 | 90 4433 548 Wait 561 | 2 409 150 Move 3662 | 71 3223 368 Hop . | . . . Pick Up 38 | 6 26 6 Fast Attach 7 | 5 2 . Attach 4 | 1 1 2 Detach . | . . . Swap 12 | . 8 4 Drop 14 | . 13 1 Fire 767 | 5 751 11 Melee 2 | . . 2 Ram . | . . . Kick . | . . . Crush . | . . . Escape Stasis . | . . . Rewire . | . . . Trap 4 | . . 4 Miscellaneous . | . . . Route ------- -11/Scrapyard -10/Materials (discovered 6 exits: [*Mat x3] / *Min x2 / [*Sub]) -10/Mines (discovered 1 exit: [*Mat]) History --------- Turn | Location | Event 11 | -11/Scrapyard | Discovered new exit (range 14) 136 | -11/Scrapyard | Entered Materials 136 | -10/Materials | Discovered new exit (range 8) 308 | -10/Materials | Build established: Mutant 397 | -10/Materials | Destroyed 8 combat bots 439 | -10/Materials | Discovered new exit (range 5) 828 | -10/Materials | Discovered new exit (range 12) 1018 | -10/Materials | Core integrity fell below 50% 1396 | -10/Materials | Discovered new exit (range 16) 1822 | -10/Materials | Discovered new exit (range 6) 2756 | -10/Materials | Central database locked down 8914 | -10/Materials | Discovered new exit (range 4) 10027 | -10/Materials | Entered Mines 10028 | -10/Mines | Met a Derelict bent on vengeance 10230 | -10/Mines | A weapon hastily lodged in a ceiling crevice suddenly fell to the ground 10327 | -10/Mines | Discovered new exit (range 5) 10339 | -10/Mines | Found a hidden stash of uninstalled traps 10453 | -10/Mines | Met a Derelict who couldn't figure out how to use a Trap Extractor 10613 | -10/Mines | Learned 4 Materials zone layouts 10973 | -10/Mines | Assembled infested the area 11024 | -10/Mines | Crushed by falling debris 11024 | -10/Mines | System corruption reached 10% 11055 | -10/Mines | Lost 4 parts (1p1u2w) 11070 | -10/Mines | Crushed by falling debris 11100 | -10/Mines | Crushed by falling debris 11143 | -10/Mines | Core integrity fell below 20% 11148 | -10/Mines | Destroyed by D-53 Grenadier with Mini Grenade Launcher Last Messages --------------- 11050_ System corrupted: Matter fused (-6). 11066_ System corrupted: Substantial component data lost. 11070_ The unstable cave ceiling collapses. 11070_ Crushed by falling debris. 11094_ P&EXM8QDAFH/8 11146_ U-05 Engineer destroyed. 11147_ K-01 Serf collects debris. 11148_ The unstable cave ceiling collapses. Map ----- +----------------------------------------------------+ | | | | | | | | | | | | | ?????????????????????????????????????????????????? | | ?????????????????????????????????????????????????? | | ?????????????????????????????????????????????????? | | ?????????????????????????????????????????????????? | | ?????????????????????????????????????????????????? | | ?????????????????????????????????????????????????? | | ?????????????????????????????????????????????????? | | ?????????????????????????????????????????????????? | | ?????????????????????????????????????????????????? | | ???????????????????????????????????? ???????????? | | ??????????????????????????????????? ???????????? | | ?????????????????????????????????? ????????????? | | ????????????????????????????????? ?????????????? | | ?????????????????????????????#### #?? ??????????? | | ???????????????????????##?### # # ? k ??????????? | | ?????????????????????### # # # ?????????? | | ????????????????????## k % ????????? | | ?????????????### ### ] du # ??????????? | | ????????????# % % #?????????? | | ????????????# @ ! #???????????? | | ?????????????????#### % #????????????? | | ????????????????????## ##????????????? | | ????????????????????# ##?????????????? | | ????????????????????# ! ] ##??????????????? | | ????????????????????# % ##???????????????? | | ????????????????????# #### ###????????????????? | | ????????????????????# #??#####??????????????????? | | ????????????????????## #?????????????????????????? | | ?????????????????????# #?????????????????????????? | | ????###??????????????# #?????????????????????????? | | ????# #######???????# #??????##########?????????? | | ????# ##??????# #??????# #?????????? | | ????# #??????# ######## """" #?????????? | | ###### #??????# """" #?????????? | | # ##### ##??????#### ##### """" ??????????? | | ##?## ##??????????# #???# #?????????? | | #### #??????####?# ##############?????????? | | #?????## ### #??????????????????? | | ## ##### #????## ### #??????????????????? | | #######???#%#???## ## #?# #??????????????????? | | ??????????# ##### ## ### ######?????????????? | | ??????????# #?????????????? | | ??????????###### #?????????????? | | ???????????????# % ### ######### #?????????????? | +----------------------------------------------------+ Best States ------------- Heat Dissipation 25 Energy Generation 10 Energy Capacity 125 Matter Stores 300 Matter Capacity 300 Sight Range 16 Terrain Scan Range 16 Terrain Scan Density 10 Evasion (%) 40 Recoil Reduction 2 Trap Extractor Capacity 6 Item Schematics ----------------- Lrg. Storage Unit | -10/Materials | Hacked Hcp. Storage Unit | -10/Materials | Hacked Grenade Launcher | -10/Materials | Hacked Cargo Storage Unit | -10/Materials | Hacked Datajack | -10/Materials | Hacked Robot Schematics ------------------ None Fabricated ------------ Nothing Repaired ---------- Nothing Alien Tech Used ----------------- None Achievements -------------- None Challenges ------------ None Game ------ Seed ActiveBiometalBooster Manual? 0 Play Time 00:48:16 Cumulative 171.4 hours Start 2025.05.11 @ 21:13:59 End 2025.05.11 @ 23:30:28 Sessions 1 Manual Loads 0 Difficulty Rogue Special Mode None Game No. 95 Rogue 87 Adventurer 8 Explorer 0 Win Type - Total 4 Types 2/0/1/1/0/0/0/0/0/0 Lore% 71 Gallery% 68 Achievement% 58 Wizard Run 0 Options --------- Layout 2 ASCII 0 Keyboard 1 Movement Numpad Keybinds 1 Fullscreen 1 Font 48/Smallcaps Map View 50x44 Zoom Use 0% Tactical HUD 1 Map Filters NONE Filters NONE Steam 1 RUN: 1d6a2d01-1b44-4df9-8a5e-a9e4de5f30ec